fUSD/lending_fUSD_20251103
["ID","MTS","AMOUNT","RATE_DAILY","PERIOD"]
[392977498,1762191044274,-503.89513203,0.00036965,7]
[392977499,1762191044283,-2056.69255441,0.00036965,7]
[392977500,1762191044292,-556.11302754,0.00036965,7]
[392977501,1762191044302,-223.16655366,0.00036965,7]
[392977502,1762191044312,-634.70783036,0.00036965,6]
[392977503,1762191044321,-728.14556419,0.00036965,10]
[392977504,1762191044330,-755.11380331,0.00036965,2]
[392977505,1762191044340,-2376.069477,0.00036965,14]
[392977506,1762191044349,-413.14319471,0.00036965,14]
[392977507,1762191044358,-25274.98102334,0.00036965,5]
[392977508,1762191044367,-476.50769957,0.00036965,7]
[392977509,1762191044376,-2375.97819497,0.00036965,7]
[392977510,1762191044386,-678.57282468,0.00036965,5]
[392977511,1762191044395,-1038.16946802,0.00036965,7]
[392977512,1762191044404,-300.0,0.00036965,15]
[392977513,1762191044413,-1062.8115894,0.00036965,7]
[392977514,1762191044423,-8131.28139151,0.00036965,7]
[392977515,1762191044432,-6733.21747848,0.00036965,7]
[392977516,1762191044441,-545.58832788,0.00036965,7]
[392977517,1762191044450,-16278.58429234,0.00036965,7]
[392977518,1762191044460,-26064.51062347,0.00036965,7]
[392977519,1762191044469,-586.21430644,0.00036965,2]
[392977520,1762191044479,-3808.57942496,0.00036965,7]
[392977521,1762191044489,-1427.27207058,0.00036965,2]
[392977522,1762191044498,-575.61151849,0.00036965,5]
[392977524,1762191044508,-165752.65594269,0.00036965,10]
[392977526,1762191044517,-1884.21591976,0.00036965,2]
[392977528,1762191044526,-1062.15950417,0.00036965,15]
[392977530,1762191044535,-1285.89601579,0.00036965,15]
[392977532,1762191044544,-231.51984859,0.00036965,15]
[392977534,1762191044554,-12961825.62392685,0.00036965,7]
[392977537,1762191044577,-1326.16543961,0.00036965,7]
[392977538,1762191044622,-384.27391174,0.00022651,2]
[392977539,1762191044638,-539.12098052,0.00022651,2]
[392977541,1762191044647,-500.0,0.000279,3]
[392977543,1762191044656,-1000.0,0.0003014,3]
[392977544,1762191044666,-11617.09828714,0.00036965,7]
[392977545,1762191044677,-1990.08,0.00036965,7]
[392977546,1762191044689,-434035.13104957,0.00036965,7]
[392977547,1762191044727,-1648.09,0.00036965,7]
[392977548,1762191044739,-8930.5205275,0.00036965,7]
[392977549,1762191044750,-8861.00672097,0.00036965,7]
[392977550,1762191044761,-8701.00342932,0.00036965,7]
[392977551,1762191044812,-500.0,0.00034453,3]
[392977553,1762191044821,-740.0779603,0.00036693,3]
[392977555,1762191044835,-259.9220397,0.00036693,3]
[392977556,1762191044844,-171.10640793,0.000367,22]
[392977557,1762191044855,-328.89359207,0.000367,22]
[392977558,1762191044865,-620.84640793,0.00036965,7]
[392977559,1762191044876,-749.99700002,0.00036965,7]
[392977560,1762191044887,-1840.88289894,0.00036965,7]
[392977561,1762191044898,-626951.24769508,0.00036965,7]
[392977562,1762191044909,-1090.11786373,0.00036965,7]
[392977563,1762191044968,-1651172.978247,0.00036965,7]
[392977564,1762191044980,-12527.06981383,0.00036965,7]
[392977565,1762191044991,-282.66620405,0.00036965,7]
[392977566,1762191045002,-4405.01494121,0.00036965,7]
[392977567,1762191045235,-7795.60850713,0.00036965,7]
[392977568,1762191046543,-923.39489226,0.00024682,2]
[392977569,1762191046554,-820.0,0.00025727,2]
[392977570,1762191046564,-500.0,0.00036964,3]
[392977571,1762191046573,-368283.82750535,0.00036965,7]
[392977584,1762191352569,1000.0,0.00013699,2]
[392977594,1762191889797,150.5,0.00026472,120]
[392977595,1762191890239,150.5,0.00026462,120]
[392977596,1762191890663,150.5,0.00026452,120]
[392977601,1762192158127,-250.0,0.00017,2]
[392977602,1762192158149,-166.66,0.0001701,2]
[392977603,1762192158169,-250.0,0.00017298,2]
[392977604,1762192158189,-166.66,0.00017368,2]
[392977605,1762192158209,-166.66,0.00017726,2]
[392977606,1762192158228,-250.0,0.00017842,2]
[392977607,1762192158247,-3126.95,0.00017976,2]
[392977608,1762192158267,-166.66,0.00018084,2]
[392977609,1762192158286,-300.0,0.0001819,2]
[392977610,1762192158306,-97.671136,0.0001819,2]
[392977649,1762192231633,-156.52,0.00017932,2]
[392977650,1762192231643,-250.0,0.00018061,2]
[392977651,1762192231652,-52.328864,0.0001819,2]
[392977652,1762192231661,-909.39349655,0.00018342,2]
[392977653,1762192231670,-1287.13075039,0.00018342,2]
[392977654,1762192231679,-300.0,0.00018349,2]
[392977655,1762192231688,-1200.0,0.00018349,2]
[392977656,1762192231695,-164.85296633,0.0001835,2]
[392977657,1762192231704,-3788.93021711,0.0001835,2]
[392977658,1762192231712,-159.83907505,0.0001835,2]
[392977659,1762192231723,-174.10839772,0.0001835,2]
[392977660,1762192231733,-7155.8704,0.0001839,2]
[392977661,1762192231742,-1000.0,0.0001839,2]
[392977662,1762192231751,-234.98558608,0.00018399,2]
[392977663,1762192231760,-176.29463699,0.00018399,2]
[392977664,1762192231769,-500.0,0.00018399,2]
[392977665,1762192231778,-270.5969005,0.00018399,2]
[392977666,1762192231787,-160.74717459,0.00018399,2]
[392977667,1762192231796,-500.0,0.00018399,2]
[392977668,1762192231806,-270.40082806,0.00018399,2]
[392977669,1762192231818,-331.3447877,0.00018399,2]
[392977670,1762192231827,-500.0,0.00018399,2]
[392977671,1762192231836,-500.0,0.00018399,2]
[392977672,1762192231845,-500.0,0.00018399,2]
[392977673,1762192231854,-501.24555517,0.00018399,2]
[392977674,1762192231863,-500.0,0.00018399,2]
[392977675,1762192231872,-500.0,0.00018399,2]
[392977676,1762192231881,-500.0,0.00018399,2]
[392977677,1762192231890,-500.0,0.00018399,2]
[392977678,1762192231899,-500.0,0.00018399,2]
[392977679,1762192231908,-500.0,0.00018399,2]
[392977680,1762192231916,-500.0,0.00018399,2]
[392977681,1762192231925,-500.0,0.00018399,2]
[392977682,1762192231934,-500.0,0.00018399,2]
[392977683,1762192231943,-531.91586587,0.00018399,2]
[392977684,1762192231952,-500.0,0.00018399,2]
[392977685,1762192231961,-525.59163704,0.00018399,2]
[392977686,1762192231975,-30675.35959484,0.000184,2]
[392977687,1762192231986,-281.35129184,0.000184,2]
[392977688,1762192231997,-2440.13081067,0.000184,2]
[392977694,1762192237481,-233.72715947,0.00018399,2]
[392977695,1762192237492,-966603.15830265,0.000184,2]
[392977696,1762192237501,-166.66,0.00018442,2]
[392977697,1762192237510,-160.82,0.0001845,2]
[392977698,1762192237519,-909.39349655,0.00018455,2]
[392977699,1762192237527,-477.5520043,0.00018468,2]
[392977700,1762192237536,-500.0,0.00018473,2]
[392977701,1762192237545,-500.0,0.00018473,2]
[392977702,1762192237554,-500.0,0.00018473,2]
[392977703,1762192237562,-500.0,0.00018473,2]
[392977704,1762192237571,-153.46008724,0.00018473,2]
[392977705,1762192237580,-500.0,0.00018473,2]
[392977706,1762192237589,-500.0,0.00018473,2]
[392977707,1762192237598,-500.0,0.00018473,2]
[392977708,1762192237607,-500.0,0.00018473,2]
[392977709,1762192237617,-500.0,0.00018473,2]
[392977710,1762192237626,-577.59273735,0.00018473,2]
[392977711,1762192237635,-504.14669281,0.00018473,2]
[392977712,1762192237643,-500.0,0.00018473,2]
[392977713,1762192237652,-500.0,0.00018473,2]
[392977714,1762192237661,-19999.99,0.00018474,2]
[392977715,1762192237669,-15223.82,0.00018474,2]
[392977716,1762192237678,-151.0,0.00018479,2]
[392977717,1762192237687,-151.0,0.00018479,2]
[392977718,1762192237696,-151.0,0.00018479,2]
[392977719,1762192237705,-151.0,0.00018479,2]
[392977720,1762192237713,-151.0,0.00018479,2]
[392977721,1762192237723,-151.0,0.00018479,2]
[392977722,1762192237732,-151.0,0.00018479,2]
[392977723,1762192237742,-151.0,0.00018479,2]
[392977725,1762192237751,-151.0,0.00018479,2]
[392977726,1762192237759,-151.0,0.00018479,2]
[392977727,1762192237771,-151.0,0.00018479,2]
[392977728,1762192237780,-151.0,0.00018479,2]
[392977729,1762192237788,-151.0,0.00018479,2]
[392977730,1762192237797,-151.0,0.00018479,2]
[392977731,1762192237806,-151.0,0.00018479,2]
[392977732,1762192237815,-151.0,0.00018479,2]
[392977733,1762192237824,-151.0,0.00018479,2]
[392977734,1762192237833,-151.0,0.00018479,2]
[392977736,1762192237841,-151.0,0.00018479,2]
[392977737,1762192237851,-151.0,0.00018479,2]
[392977738,1762192237859,-151.0,0.00018479,2]
[392977739,1762192237868,-151.0,0.00018479,2]
[392977740,1762192237877,-151.0,0.00018479,2]
[392977741,1762192237886,-151.0,0.00018479,2]
[392977742,1762192237895,-151.0,0.00018479,2]
[392977743,1762192237905,-151.0,0.00018479,2]
[392977744,1762192237914,-151.0,0.00018479,2]
[392977745,1762192237923,-151.0,0.00018479,2]
[392977746,1762192237932,-151.0,0.00018479,2]
[392977747,1762192237941,-151.0,0.00018479,2]
[392977748,1762192237950,-151.0,0.00018479,2]
[392977749,1762192237959,-151.0,0.00018479,2]
[392977750,1762192237968,-151.0,0.00018479,2]
[392977751,1762192237981,-151.0,0.00018479,2]
[392977752,1762192237990,-151.0,0.00018479,2]
[392977753,1762192237999,-151.0,0.00018479,2]
[392977754,1762192238007,-151.0,0.00018479,2]
[392977755,1762192238018,-151.0,0.00018479,2]
[392977756,1762192238027,-151.0,0.00018479,2]
[392977757,1762192238036,-151.0,0.00018479,2]
[392977758,1762192238046,-1413.42946077,0.0001848,2]
[392977759,1762192238056,-500.0,0.00018489,2]
[392977760,1762192238065,-500.0,0.00018489,2]
[392977761,1762192238074,-500.0,0.00018489,2]
[392977762,1762192238083,-500.0,0.00018489,2]
[392977763,1762192238093,-500.0,0.00018489,2]
[392977764,1762192238102,-500.0,0.00018489,2]
[392977765,1762192238111,-500.0,0.00018489,2]
[392977766,1762192238120,-1000.0,0.0001849,2]
[392977767,1762192238129,-420000.0,0.0001849,2]
[392977768,1762192238138,-909.39349655,0.00018568,2]
[392977769,1762192238148,-1528.63170286,0.00018668,2]
[392977770,1762192238157,-459.46030862,0.000187,2]
[392977771,1762192238166,-195.0,0.000187,2]
[392977772,1762192238175,-300.0,0.000187,2]
[392977773,1762192238185,-250.0,0.000187,2]
[392977774,1762192238194,-166.66,0.000188,2]
[392977775,1762192238203,-550.41,0.00018804,2]
[392977776,1762192238211,-500.0,0.00018999,2]
[392977777,1762192238220,-524.10146729,0.00018999,2]
[392977778,1762192238229,-500.0,0.00018999,2]
[392977779,1762192238239,-500.0,0.00018999,2]
[392977780,1762192238248,-500.0,0.00018999,2]
[392977781,1762192238257,-500.0,0.00018999,2]
[392977782,1762192238266,-500.0,0.00018999,2]
[392977783,1762192238275,-300.0,0.00019,2]
[392977784,1762192238284,-644.71142354,0.00019,2]
[392977785,1762192238292,-500.0,0.00019021,2]
[392977786,1762192238301,-511.4774966,0.000191,2]
[392977787,1762192238310,-500.0,0.00019175,2]
[392977788,1762192238319,-503.47786786,0.00019175,2]
[392977789,1762192238327,-500.0,0.00019175,2]
[392977790,1762192238337,-161.50538848,0.00019175,2]
[392977791,1762192238346,-500.11558299,0.00019175,2]
[392977792,1762192238355,-500.0,0.00019175,2]
[392977793,1762192238365,-500.75904731,0.00019175,2]
[392977794,1762192238374,-500.0,0.00019175,2]
[392977795,1762192238383,-500.0,0.00019175,2]
[392977796,1762192238392,-500.0,0.00019178,2]
[392977797,1762192238402,-500.0,0.00019178,2]
[392977798,1762192238412,-500.0,0.00019178,2]
[392977799,1762192238421,-500.0,0.00019178,2]
[392977800,1762192238431,-500.0,0.00019178,2]
[392977801,1762192238442,-500.0,0.00019178,2]
[392977802,1762192238451,-370.90412366,0.0001918,2]
[392977803,1762192238460,-500.0,0.0001918,2]
[392977804,1762192238469,-500.0,0.0001918,2]
[392977805,1762192238481,-500.0,0.0001918,2]
[392977806,1762192238490,-500.0,0.0001918,2]
[392977807,1762192238498,-500.0,0.0001918,2]
[392977808,1762192238505,-500.0,0.0001918,2]
[392977809,1762192238511,-500.0,0.0001918,2]
[392977810,1762192238519,-501.4870916,0.0001918,2]
[392977811,1762192238528,-500.0,0.0001918,2]
[392977812,1762192238538,-500.0,0.0001918,2]
[392977813,1762192238547,-500.0,0.0001918,2]
[392977814,1762192238554,-500.0,0.0001918,2]
[392977815,1762192238560,-502.67556609,0.00019367,2]
[392977816,1762192238566,-500.0,0.00019367,2]
[392977817,1762192238572,-500.0,0.00019367,2]
[392977818,1762192238578,-500.0,0.00019367,2]
[392977819,1762192238584,-500.0,0.00019367,2]
[392977820,1762192238590,-500.0,0.00019723,2]
[392977821,1762192238596,-250.0,0.00019725,2]
[392977822,1762192238602,-500.0,0.00019728,2]
[392977823,1762192238609,-1000.0,0.00019728,2]
[392977824,1762192238614,-197.34233271,0.00019728,2]
[392977825,1762192238620,-502.87918158,0.00019915,2]
[392977826,1762192238628,-420.0,0.00020014,2]
[392977827,1762192238634,-1406.0,0.00020112,2]
[392977828,1762192238640,-1000.0,0.00020187,2]
[392977829,1762192238647,-1287.13075034,0.00020262,2]
[392977830,1762192238654,-3788.93021704,0.00020336,2]
[392977831,1762192238660,-163.23764023,0.00020728,2]
[392977832,1762192238668,-156.52,0.0002092,2]
[392977833,1762192238677,-350.0,0.00021,2]
[392977834,1762192238684,-587.0,0.00021829,2]
[392977835,1762192238690,-500.0,0.00021857,2]
[392977836,1762192238696,-500.0,0.00021857,2]
[392977837,1762192238702,-500.0,0.00021857,2]
[392977838,1762192238709,-500.0,0.00021857,2]
[392977839,1762192238716,-500.0,0.00021857,2]
[392977840,1762192238723,-536.55386986,0.00021857,2]
[392977841,1762192238732,-500.0,0.00021918,4]
[392977842,1762192238741,-500.0,0.00021918,4]
[392977843,1762192238750,-500.0,0.00021918,4]
[392977844,1762192238759,-500.0,0.00021918,4]
[392977845,1762192238768,-251.31817647,0.00021918,4]
[392977846,1762192238778,-500.0,0.00021918,4]
[392977847,1762192238788,-500.0,0.00021918,4]
[392977848,1762192238798,-500.0,0.00021918,4]
[392977849,1762192238808,-500.0,0.00021918,4]
[392977850,1762192238817,-500.0,0.00021918,4]
[392977851,1762192238826,-500.0,0.00021918,4]
[392977852,1762192238835,-500.0,0.00021918,4]
[392977853,1762192238844,-500.0,0.00021918,4]
[392977854,1762192238854,-150.0,0.00022055,2]
[392977855,1762192238863,-150.0,0.00022055,2]
[392977856,1762192238873,-150.0,0.00022055,2]
[392977857,1762192238883,-150.0,0.00022055,2]
[392977858,1762192238892,-211.02653668,0.00022055,2]
[392977859,1762192238901,-150.0,0.00022055,2]
[392977860,1762192238910,-150.0,0.00022055,2]
[392977861,1762192238919,-150.0,0.00022055,2]
[392977862,1762192238928,-150.0,0.00022055,2]
[392977863,1762192238937,-150.0,0.00022055,2]
[392977864,1762192238946,-150.0,0.00022055,2]
[392977865,1762192238956,-150.0,0.00022055,2]
[392977866,1762192238965,-151.37163978,0.00022055,2]
[392977867,1762192238976,-150.0,0.00022055,2]
[392977868,1762192238985,-150.0,0.00022055,2]
[392977869,1762192238995,-150.0,0.00022055,2]
[392977870,1762192239004,-150.77091693,0.00022055,2]
[392977871,1762192239015,-500.0,0.00022055,2]
[392977872,1762192239024,-150.0,0.00022055,2]
[392977873,1762192239033,-150.0,0.00022055,2]
[392977874,1762192239042,-150.0,0.00022055,2]
[392977875,1762192239051,-500.0,0.00022055,2]
[392977876,1762192239060,-150.0,0.00022055,2]
[392977877,1762192239069,-500.0,0.00022055,2]
[392977878,1762192239077,-1287.13075034,0.00022183,2]
[392977879,1762192239087,-150.0,0.00022192,2]
[392977880,1762192239095,-150.0,0.00022192,2]
[392977881,1762192239104,-150.0,0.00022192,2]
[392977882,1762192239113,-150.0,0.00022192,2]
[392977883,1762192239123,-150.0,0.00022192,2]
[392977884,1762192239132,-150.0,0.00022192,2]
[392977885,1762192239141,-296.49325044,0.00022192,2]
[392977886,1762192239151,-150.0,0.00022192,2]
[392977887,1762192239160,-150.0,0.00022192,2]
[392977888,1762192239170,-150.0,0.00022192,2]
[392977889,1762192239178,-500.0,0.00022192,2]
[392977890,1762192239187,-150.0,0.00022192,2]
[392977891,1762192239198,-150.0,0.00022192,2]
[392977892,1762192239207,-500.0,0.00022192,2]
[392977893,1762192239216,-150.0,0.00022192,2]
[392977894,1762192239226,-500.0,0.00022192,2]
[392977895,1762192239235,-455.07554772,0.00022199,2]
[392977896,1762192239244,-462.45950045,0.00022199,2]
[392977897,1762192239254,-500.0,0.00022199,2]
[392977898,1762192239262,-500.0,0.00022199,2]
[392977899,1762192239272,-500.0,0.00022199,2]
[392977900,1762192239281,-500.0,0.00022199,2]
[392977901,1762192239291,-500.0,0.00022199,2]
[392977902,1762192239300,-500.0,0.00022199,2]
[392977903,1762192239309,-500.0,0.00022199,2]
[392977904,1762192239318,-500.0,0.00022199,2]
[392977905,1762192239328,-500.0,0.00022199,2]
[392977906,1762192239347,-500.0,0.00022199,2]
[392977907,1762192239356,-500.0,0.00022199,2]
[392977908,1762192239367,-500.0,0.00022199,2]
[392977909,1762192239377,-1358213.11256311,0.000222,2]
[392977910,1762192239386,-4428.88,0.000222,7]
[392977911,1762192239395,-269.79691867,0.00022315,2]
[392977912,1762192239403,-150.0,0.00022315,2]
[392977913,1762192239413,-150.0,0.00022315,2]
[392977914,1762192239422,-256.73388431,0.00022315,2]
[392977915,1762192239431,-205.02010256,0.00022315,2]
[392977916,1762192239440,-150.0,0.00022315,2]
[392977917,1762192239449,-150.0,0.00022315,2]
[392977918,1762192239458,-150.0,0.00022315,2]
[392977919,1762192239467,-150.0,0.00022315,2]
[392977920,1762192239476,-150.0,0.00022315,2]
[392977921,1762192239485,-3788.93021704,0.00022322,2]
[392977922,1762192239494,-150.0,0.00022329,2]
[392977923,1762192239503,-150.0,0.00022329,2]
[392977924,1762192239512,-150.0,0.00022329,2]
[392977925,1762192239522,-150.0,0.00022329,2]
[392977926,1762192239531,-150.0,0.00022329,2]
[392977927,1762192239541,-150.0,0.00022329,2]
[392977928,1762192239550,-150.0,0.00022329,2]
[392977929,1762192239559,-150.0,0.00022329,2]
[392977930,1762192239567,-500.0,0.00022329,2]
[392977931,1762192239576,-500.0,0.00022329,2]
[392977932,1762192239585,-150.0,0.00022466,2]
[392977933,1762192239594,-150.0,0.00022466,2]
[392977934,1762192239603,-150.0,0.00022466,2]
[392977935,1762192239612,-204.31092621,0.00022466,2]
[392977936,1762192239621,-150.0,0.00022466,2]
[392977937,1762192239630,-150.0,0.00022466,2]
[392977938,1762192239639,-500.0,0.00022466,2]
[392977939,1762192239647,-500.0,0.00022466,2]
[392977940,1762192239656,-501.36773096,0.000226,2]
[392977941,1762192239665,-150.0,0.00022603,2]
[392977942,1762192239674,-150.0,0.00022603,2]
[392977943,1762192239683,-150.0,0.00022603,2]
[392977944,1762192239692,-150.0,0.00022603,2]
[392977945,1762192239701,-150.0,0.00022603,2]
[392977946,1762192239709,-500.0,0.00022603,2]
[392977947,1762192239719,-500.0,0.00022603,2]
[392977948,1762192239728,-250.0,0.0002274,2]
[392977949,1762192239924,-250.0,0.0002274,2]
[392977950,1762192239933,-250.0,0.0002274,2]
[392977951,1762192239943,-250.0,0.0002274,2]
[392977952,1762192239952,-500.0,0.0002274,2]
[392977953,1762192239961,-500.0,0.0002274,2]
[392977954,1762192239973,-500.0,0.00022877,2]
[392977955,1762192239983,-500.0,0.00022877,2]
[392977956,1762192239992,-226.36588681,0.00022927,4]
[392977957,1762192240001,-400.0,0.00023,2]
[392977958,1762192240010,-500.0,0.00023014,2]
[392977959,1762192240021,-500.0,0.00023014,2]
[392977960,1762192240030,-159.83907504,0.0002302,2]
[392977961,1762192240039,-174.10839772,0.0002302,2]
[392977962,1762192240048,-500.0,0.00023151,2]
[392977963,1762192240058,-522.30278287,0.00023151,2]
[392977965,1762192240067,-500.0,0.00023288,2]
[392977967,1762192240076,-150.0,0.00023425,2]
[392977969,1762192240085,-500.0,0.00023425,2]
[392977971,1762192240094,-500.0,0.00023562,2]
[392977973,1762192240103,-500.0,0.00023699,2]
[392977975,1762192240112,-500.0,0.00023836,2]
[392977977,1762192240121,-156.52,0.00023909,2]
[392977979,1762192240130,-500.0,0.00023973,2]
[392977981,1762192240138,-1287.13075034,0.00024103,2]
[392977983,1762192240148,-500.0,0.0002411,2]
[392977985,1762192240157,-500.0,0.00024247,2]
[392977987,1762192240166,-3788.93021704,0.00024308,2]
[392977989,1762192240175,-500.0,0.00024384,2]
[392977992,1762192240185,-500.0,0.00024521,2]
[392977994,1762192240194,-1000.0,0.00024635,2]
[392977996,1762192240203,-183.16194657,0.00024658,2]
[392977997,1762192240212,-500.0,0.00024799,2]
[392977999,1762192240221,-429.79976124,0.00024799,2]
[392978001,1762192240230,-500.0,0.00024799,2]
[392978002,1762192240239,-500.0,0.00024799,2]
[392978003,1762192240248,-291.51086275,0.00024799,2]
[392978004,1762192240257,-607949.966423,0.000248,3]
[392978005,1762192240265,-1413.42946077,0.0002489,2]
[392978006,1762192240274,-500.0,0.00024899,2]
[392978007,1762192240283,-500.0,0.00024899,2]
[392978008,1762192240291,-612407.506039,0.000249,3]
[392978009,1762192240300,-450.0,0.00025,2]
[392978011,1762192240309,-2635.22,0.00025465,2]
[392978013,1762192240318,-1000.0,0.00025558,2]
[392978015,1762192240327,-151.0,0.00025727,2]
[392978017,1762192240336,-1287.13075034,0.00026023,2]
[392978019,1762192240345,-1000.0,0.00026027,2]
[392978021,1762192240354,-3788.93021704,0.00026294,2]
[392978023,1762192240363,-1000.0,0.00026301,2]
[392978025,1762192240371,-1000.0,0.00026482,2]
[392978027,1762192240380,-4428.88,0.000265,7]
[392978029,1762192240390,-500.0,0.0002656,2]
[392978031,1762192240399,-1000.0,0.00026575,2]
[392978033,1762192240408,-447.8349712,0.0002659,7]
[392978035,1762192240417,-1000.0,0.00026676,2]
[392978037,1762192240426,-1000.0,0.00026849,2]
[392978039,1762192240435,-156.52,0.00026897,2]
[392978041,1762192240444,-500.0,0.00027,2]
[392978043,1762192240453,-1000.0,0.00027123,2]
[392978045,1762192240462,-181.3,0.00027397,10]
[392978047,1762192240471,-1000.0,0.00027397,2]
[392978049,1762192240481,-9999.99,0.00027397,2]
[392978052,1762192240491,-252.93,0.000274,7]
[392978053,1762192240499,-455.29,0.000274,7]
[392978055,1762192240509,-477.5520043,0.000274,7]
[392978057,1762192240518,-1611.2,0.000274,2]
[392978059,1762192240527,-1000.0,0.00027406,2]
[392978061,1762192240536,-199.0,0.00027671,7]
[392978063,1762192240545,-1000.0,0.00027671,2]
[392978065,1762192240554,-1024.86,0.00027671,30]
[392978067,1762192240563,-159.83907504,0.0002769,2]
[392978069,1762192240572,-174.10839772,0.0002769,2]
[392978071,1762192240581,-3421.0,0.00027924,2]
[392978073,1762192240590,-926.62,0.00027924,2]
[392978075,1762192240599,-607.0,0.00027924,2]
[392978077,1762192240609,-573.0,0.00027924,2]
[392978079,1762192240617,-1315.0,0.00027924,2]
[392978081,1762192240627,-1595.0,0.00027924,2]
[392978083,1762192240636,-1187.0,0.00027924,2]
[392978085,1762192240645,-819.0,0.00027924,2]
[392978087,1762192240655,-1272.0,0.00027924,2]
[392978089,1762192240664,-6652.0,0.00027924,2]
[392978091,1762192240674,-559.0,0.00027924,2]
[392978093,1762192240684,-2140.0,0.00027924,2]
[392978096,1762192240693,-6468.0,0.00027924,2]
[392978098,1762192240703,-1287.13075034,0.00027944,2]
[392978100,1762192240712,-199.0,0.00027945,8]
[392978101,1762192240721,-1000.0,0.00027945,2]
[392978103,1762192240731,-199.0,0.00028219,9]
[392978105,1762192240741,-1000.0,0.00028219,2]
[392978108,1762192240751,-3788.93021704,0.00028281,2]
[392978109,1762192240761,-1000.0,0.0002833,2]
[392978111,1762192240770,-199.0,0.00028493,10]
[392978114,1762192240780,-1000.0,0.00028493,2]
[392978115,1762192240790,-201.83904765,0.00028767,11]
[392978118,1762192240799,-1000.0,0.00028767,2]
[392978120,1762192240808,-500.0,0.00028932,2]
[392978122,1762192240818,-550.0,0.00029,2]
[392978124,1762192240827,-1000.0,0.00029041,2]
[392978126,1762192240836,-500.0,0.00029136,7]
[392978128,1762192240845,-4428.88,0.000292,7]
[392978129,1762192240854,-1000.0,0.00029315,2]
[392978131,1762192240864,-3909.0,0.00029562,2]
[392978133,1762192240873,-1000.0,0.00029589,2]
[392978135,1762192240883,-1611.2,0.000296,2]
[392978137,1762192240892,-1000.0,0.00029863,2]
[392978139,1762192240902,-1287.13075034,0.00029864,2]
[392978141,1762192240911,-252.93,0.000299,7]
[392978143,1762192240920,-455.29,0.000299,7]
[392978145,1762192240929,-1000.0,0.00030136,2]
[392978147,1762192240938,-303.45169053,0.00030136,2]
[392978149,1762192240947,-713.35,0.00030136,2]
[392978151,1762192240956,-500.0,0.00030136,10]
[392978153,1762192240965,-500.0,0.00030136,2]
[392978155,1762192240976,-3529.54,0.00030136,2]
[392978157,1762192240986,-300.0,0.00030136,2]
[392978158,1762192240996,-1000.0,0.00030137,2]
[392978161,1762192241005,-500.0,0.00030137,2]
[392978162,1762192241015,-500.0,0.00030137,2]
[392978165,1762192241024,-500.0,0.00030137,2]
[392978167,1762192241034,-285.94540045,0.00030137,2]
[392978169,1762192241043,-500.0,0.00030137,2]
[392978171,1762192241052,-500.0,0.00030137,2]
[392978172,1762192241063,-500.0,0.00030137,2]
[392978174,1762192241072,-893.11000058,0.0003014,7]
[392978177,1762192241081,-207.6370637,0.0003014,7]
[392978179,1762192241091,-3788.93021704,0.00030267,2]
[392978181,1762192241100,-150.0,0.00030343,2]
[392978183,1762192241109,-1000.0,0.0003041,2]
[392978185,1762192241118,-713.35,0.0003041,2]
[392978187,1762192241128,-500.0,0.0003041,10]